bitfinex-derivatives/quotes_ETHF0:USTF0_20250730
["timestamp","ask_amount","ask_price","bid_price","bid_amount"]
[1753862209198,0.7256,3805.0,3804.9,1.7505]
[1753862209485,0.52558,3805.5,3805.4,0.1962]
[1753862209687,0.80568,3805.5,3805.4,1.2999]
[1753862210085,1.25118,3805.5,3805.4,1.2999]
[1753862210493,2.05743379,3805.5,3805.4,0.989]
[1753862210789,0.7256,3805.5,3805.4,1.2999]
[1753862210992,0.7256,3805.5,3805.4,1.7505]
[1753862211582,0.52557,3805.6,3805.4,1.7505]
[1753862211583,0.0353,3805.8,3805.5,0.52558]
[1753862211889,0.3029,3806.1,3806.0,0.7136]
[1753862212089,0.80641971,3806.1,3806.0,1.7844]
[1753862212391,79.59534,3806.5,3806.4,1.34]
[1753862212592,1.35804,3805.9,3805.8,1.34]
[1753862212786,1.35804,3805.9,3805.8,1.7844]
[1753862213194,1.32274,3805.9,3805.8,1.7844]
[1753862214085,0.52549,3806.1,3805.8,1.7844]
[1753862214286,0.52549,3806.1,3806.0,0.5164]
[1753862214494,0.52549,3806.2,3806.1,1.34]
[1753862214690,0.52549,3806.2,3806.1,1.7844]
[1753862214897,1.26629,3806.2,3806.1,1.7844]
[1753862216394,0.4732,3806.6,3806.3,0.7136]
[1753862216592,0.3593,3807.0,3806.9,0.7136]
[1753862216793,0.3593,3807.0,3806.9,1.158]
[1753862216794,0.80726812,3807.0,3806.9,1.158]
[1753862216999,1.11016812,3807.0,3806.9,1.158]
[1753862217193,1.11016812,3807.0,3806.9,1.7844]
[1753862217194,1.63976812,3807.0,3806.9,1.7844]
[1753862217796,1.60446812,3807.0,3806.9,1.7844]
[1753862218399,2.71238745,3807.0,3806.9,1.7844]
[1753862218597,2.27448745,3807.0,3806.9,1.7844]
[1753862218992,1.97158745,3807.0,3806.9,1.7844]
[1753862219192,0.80726812,3807.0,3806.9,1.7844]
[1753862219401,1.16431933,3807.2,3807.1,1.7844]
[1753862219593,1.97168021,3807.2,3807.1,1.7844]
[1753862220094,0.80736088,3807.2,3807.1,1.7844]
[1753862220293,1.97168021,3807.2,3807.1,1.7844]
[1753862220499,1.87511194,3807.9,3807.8,0.7136]
[1753862220700,1.87511194,3807.9,3807.8,1.7844]
[1753862220701,1.1411,3807.9,3807.8,1.7844]
[1753862220893,1.3577,3807.9,3807.8,1.7844]
[1753862221800,0.7032,3807.9,3807.8,1.7844]
[1753862222004,0.2,3807.9,3807.8,1.7844]
[1753862222303,1.36431933,3807.9,3807.8,1.7844]
[1753862222502,1.66721933,3807.9,3807.8,1.7844]
[1753862223598,1.36431933,3807.9,3807.8,1.7844]
[1753862223797,0.2,3807.9,3807.8,1.7844]
[1753862224201,1.36431933,3807.9,3807.8,1.7844]
[1753862230507,1.36431933,3807.9,3807.8,2.30966]
[1753862231908,0.2,3807.9,3807.8,2.30966]
[1753862232497,1.46721933,3808.7,3808.6,0.8236]
[1753862232800,1.0561,3809.0,3808.9,0.7136]
[1753862233007,1.494,3809.0,3808.9,1.7844]
[1753862233404,0.82799,3809.0,3808.9,1.7844]
[1753862233609,2.01909,3809.0,3808.9,1.7844]
[1753862233807,0.8281,3808.3,3808.2,1.7844]
[1753862234011,1.494,3808.3,3808.2,1.7844]
[1753862234508,1.1577,3808.3,3808.2,1.7844]
[1753862234710,1.494,3808.3,3808.2,1.7844]
[1753862234911,1.7821,3808.3,3808.2,1.7844]
[1753862235101,1.494,3808.3,3808.2,1.7844]
[1753862236705,1.31294,3808.5,3807.9,0.2877]
[1753862236905,2.65831933,3808.0,3807.9,1.7844]
[1753862237609,3.18354933,3808.0,3807.9,1.7844]
[1753862238010,2.65831933,3808.0,3807.9,1.7844]
[1753862238311,1.494,3808.0,3807.9,1.7844]
[1753862240602,0.5032,3807.4,3807.3,1.0013]
[1753862240805,1.1577,3807.4,3807.3,1.0013]
[1753862241213,1.1577,3807.4,3807.3,1.7844]
[1753862242811,1.4773,3807.4,3807.3,1.34]
[1753862243012,1.4773,3807.4,3807.3,1.7749]
[1753862243410,1.4773,3807.4,3807.3,2.30023]
[1753862244613,0.5228,3807.4,3807.3,0.343]
[1753862244914,1.0289,3807.4,3807.3,1.7927]
[1753862245314,1.4656,3807.4,3807.3,1.7927]
[1753862246706,1.4656,3807.4,3807.3,1.5679]
[1753862246907,1.4656,3807.4,3807.3,1.7927]
[1753862247507,1.4656,3807.4,3807.2,0.52534]
[1753862247719,0.9969,3807.4,3807.3,0.8362]
[1753862247920,0.9969,3807.4,3807.3,1.061]
[1753862248126,0.7093,3807.4,3807.3,1.7927]
[1753862248319,1.4586,3807.3,3807.2,1.0747]
[1753862248532,1.4586,3807.3,3807.2,1.4881]
[1753862248716,2.03235614,3807.3,3807.2,1.4881]
[1753862248912,2.31995614,3807.3,3807.2,1.7927]
[1753862249325,1.7462,3807.3,3807.2,1.7927]
[1753862249514,1.7462,3807.3,3807.2,0.718]
[1753862249916,1.7462,3807.3,3807.2,0.4932]
[1753862250318,1.7462,3807.3,3807.2,0.3046]
[1753862250519,0.7023,3807.1,3807.0,1.01856]
[1753862250719,1.7462,3807.1,3807.0,1.58636]
[1753862251119,1.7462,3807.1,3807.0,2.02126]
[1753862251321,1.4586,3807.1,3807.0,2.31806]
[1753862251523,1.4586,3807.1,3807.0,1.01856]
[1753862251819,1.4586,3807.1,3807.0,2.31806]
[1753862254827,1.139,3807.1,3807.0,2.31806]
[1753862255029,0.7326,3807.1,3807.0,2.31806]
[1753862255322,0.7326,3807.8,3807.7,1.67037]
[1753862255527,1.139,3807.8,3807.7,1.1451]
[1753862255725,1.7462,3807.8,3807.7,0.718]
[1753862255918,0.7023,3807.8,3807.6,0.52528]
[1753862256123,1.139,3807.7,3807.6,2.01338]
[1753862256317,0.2959,3807.7,3807.6,2.01338]
[1753862256522,0.2959,3807.9,3807.8,0.82205]
[1753862256725,0.7326,3807.9,3807.8,1.23545]
[1753862256928,1.4586,3807.9,3807.8,1.23545]
[1753862257230,1.4586,3807.9,3807.8,2.31795]
[1753862263629,1.59565614,3808.3,3808.2,1.5784]
[1753862263937,2.03235614,3808.3,3808.2,1.7927]
[1753862265843,1.73645614,3808.4,3808.3,1.7927]
[1753862266040,1.4586,3808.4,3808.3,2.31788]
[1753862266740,1.139,3808.4,3808.3,2.31788]
[1753862267043,0.2959,3808.4,3808.3,2.31788]
[1753862267338,1.4586,3808.7,3808.6,1.061]
[1753862267540,0.7023,3808.5,3808.4,0.93858]
[1753862267744,1.7462,3808.5,3808.4,1.28158]
[1753862267948,1.7462,3808.5,3808.4,2.01328]
[1753862268244,1.4586,3808.5,3808.4,2.31788]
[1753862272344,1.3734,3808.4,3808.3,0.52519]
[1753862272550,2.35125614,3808.4,3808.3,1.53439]
[1753862273245,0.57375614,3808.4,3808.3,2.27109]
[1753862273549,1.30845614,3808.4,3808.3,2.27109]
[1753862274249,2.04135614,3808.4,3808.3,2.27109]
[1753862275445,1.35325614,3808.7,3808.3,1.7459]
[1753862275747,1.04425614,3808.7,3808.6,2.27105]
[1753862275946,0.4507,3808.9,3808.8,0.52512]
[1753862276144,0.7347,3808.9,3808.8,2.27102]
[1753862276343,0.284,3808.9,3808.8,2.27102]
[1753862276649,1.4676,3809.3,3809.2,2.27097]
[1753862278638,1.1388,3809.3,3809.2,2.27097]
[1753862279150,0.284,3809.3,3809.2,2.27097]
[1753862279451,1.4676,3809.5,3809.4,1.7459]
[1753862280349,1.1388,3809.5,3809.4,1.7459]
[1753862280546,0.52499,3809.8,3809.5,0.52503]
[1753862280753,0.484,3809.9,3809.8,1.7459]
[1753862280948,1.46185614,3809.9,3809.8,1.7459]
[1753862281246,2.55125614,3809.9,3809.8,0.481]
[1753862281553,2.29673614,3809.9,3809.8,0.4069]
[1753862281754,1.77175614,3809.9,3809.8,1.0092]
[1753862281949,0.2,3809.9,3809.8,1.7459]
[1753862282451,0.484,3809.9,3809.8,1.7459]
[1753862282647,0.018,3810.3,3810.2,0.4069]
[1753862282848,1.85173,3810.2,3810.1,1.0092]
[1753862283045,2.04135614,3810.2,3810.1,1.3026]
[1753862283248,0.52497,3809.9,3809.6,0.81221]
[1753862283451,1.52297,3809.9,3809.8,0.2872]
[1753862283654,2.09672614,3809.9,3809.8,0.2872]
[1753862283849,2.87622614,3809.9,3809.8,0.481]
[1753862284048,2.87622614,3809.9,3809.8,1.0092]
[1753862285450,2.87622614,3809.9,3809.6,0.96831]
[1753862285451,1.2131,3809.7,3809.6,0.9875]
[1753862285753,0.6881,3809.7,3809.6,1.7459]
[1753862286153,1.4676,3809.7,3809.6,1.7459]
[1753862288054,1.4676,3809.7,3809.6,2.27091]
[1753862288851,1.1388,3809.7,3809.6,1.82761]
[1753862289051,1.1388,3809.7,3809.6,2.27091]
[1753862290456,1.4676,3809.9,3809.8,0.7003]
[1753862291054,1.4676,3809.9,3809.8,1.7459]
[1753862293059,0.52495,3810.1,3809.8,2.27087]
[1753862293359,1.4676,3810.0,3809.9,1.7459]
[1753862297753,1.0349,3810.3,3810.2,1.0154]
[1753862297956,1.0349,3810.3,3810.2,1.3026]
[1753862298154,1.4856,3810.3,3810.2,1.7459]
[1753862299660,0.018,3810.3,3810.2,1.7459]
[1753862300462,0.4687,3810.3,3810.2,1.7459]
[1753862300857,0.7527,3810.3,3810.2,1.7459]
[1753862301057,0.018,3810.3,3810.2,1.7459]
[1753862301863,0.4781,3810.3,3810.2,1.7459]
[1753862302966,0.7749,3810.3,3810.2,1.7459]
[1753862303562,0.3148,3810.3,3810.2,1.7459]
[1753862303759,0.018,3810.3,3810.2,1.7459]
[1753862304167,0.018,3810.3,3810.2,6.9948994]
[1753862305964,0.018,3810.3,3810.2,7.56865554]
[1753862306868,0.52474,3811.6,3811.1,0.5248]
[1753862307063,0.3192,3811.5,3811.4,1.0411]
[1753862307368,0.4811,3811.9,3811.3,1.09853614]
[1753862307369,1.0056,3811.8,3811.7,0.7061]
[1753862307560,1.0056,3811.8,3811.7,1.8021]
[1753862307762,0.6864,3811.8,3811.7,1.8021]
[1753862307965,1.1465,3811.8,3811.7,1.8021]
[1753862308272,0.2,3811.9,3811.8,1.62011]
[1753862308471,0.2968,3812.5,3812.4,0.3032]
[1753862308771,0.9436,3812.5,3812.4,1.8021]
[1753862309362,1.4657,3812.8,3812.7,1.86888]
[1753862309566,2.25986228,3812.8,3812.7,2.32668]
[1753862309765,2.25986228,3812.8,3812.7,1.8021]
[1753862310172,1.4657,3812.8,3812.7,1.8021]
[1753862310369,1.1465,3812.8,3812.7,2.37585614]
[1753862310572,0.80569,3812.7,3812.5,0.3038]
[1753862310765,1.7468,3812.6,3812.5,0.3038]
[1753862311370,1.7468,3812.6,3812.5,0.8371]
[1753862311967,0.4835,3812.0,3811.9,1.0274]
[1753862312171,0.7569,3812.0,3811.9,2.3268]
[1753862312367,0.4997,3812.5,3812.4,0.5072]
[1753862312572,0.4997,3812.5,3812.4,1.8021]
[1753862312573,1.4657,3812.5,3812.4,1.8021]
[1753862313266,1.1465,3812.5,3812.4,1.8021]
[1753862313470,0.2968,3812.5,3812.4,1.8021]
[1753862313671,0.7569,3812.5,3812.4,1.8021]
[1753862315068,0.9436,3812.5,3812.4,1.8021]
[1753862315270,1.4657,3812.5,3812.4,1.8021]
[1753862320069,0.6864,3812.5,3812.4,1.1639]
[1753862320267,1.4657,3812.5,3812.4,1.1639]
[1753862320671,0.7569,3812.6,3812.5,1.79341]
[1753862320875,1.1465,3812.6,3812.5,2.32671]
[1753862321068,1.4657,3812.6,3812.5,2.32671]
[1753862322169,0.9436,3812.6,3812.5,2.32671]
[1753862322374,1.4657,3812.6,3812.5,2.32671]
[1753862324472,1.1465,3812.6,3812.5,2.32671]
[1753862324871,0.2968,3812.6,3812.5,2.32671]
[1753862325067,0.6864,3813.1,3813.0,1.8021]
[1753862325670,1.4657,3813.1,3813.0,1.8021]
[1753862326976,1.7468,3813.1,3813.0,1.8021]
[1753862327675,2.32055614,3813.1,3813.0,0.3038]
[1753862327875,1.1465,3812.9,3812.8,1.36166]
[1753862328180,1.7468,3812.9,3812.8,2.02346]
[1753862328375,1.7468,3812.9,3812.8,2.32666]
[1753862329076,1.4657,3812.9,3812.8,2.32666]
[1753862330075,1.4657,3812.9,3812.8,1.8021]
[1753862330270,0.1867,3812.7,3812.6,0.3038]
[1753862330573,1.7468,3812.7,3812.6,1.0411]
[1753862330876,1.4657,3812.7,3812.6,1.8021]
[1753862331078,1.1465,3812.7,3812.6,1.8021]
[1753862331377,1.4657,3812.7,3812.6,1.8021]
[1753862332771,1.4657,3812.7,3812.6,1.7924]
[1753862334271,1.99029,3812.7,3812.6,1.7924]
[1753862334566,1.4657,3812.7,3812.6,1.7924]
[1753862334770,1.7694,3812.7,3812.6,1.7924]
[1753862335379,1.4547,3812.3,3812.2,2.33125]
[1753862335772,1.1438,3812.3,3812.2,2.33125]
[1753862335971,1.4547,3812.3,3812.2,2.33125]
[1753862340080,0.5018,3812.0,3811.9,1.04819]
[1753862340383,1.7584,3812.0,3811.9,2.33129]
[1753862340784,1.4547,3812.0,3811.9,2.33129]
[1753862343780,1.4547,3812.0,3811.8,0.3071]
[1753862343781,0.7016,3811.9,3811.8,0.3071]
[1753862343989,1.0092,3811.9,3811.8,1.3585]
[1753862344183,1.0092,3811.9,3811.8,1.8066]
[1753862344378,1.4547,3811.9,3811.8,1.8066]
[1753862346590,1.9794,3811.9,3811.8,1.8066]
[1753862346890,1.4547,3811.9,3811.8,1.8066]
[1753862347787,1.4547,3811.9,3811.8,0.5131]
[1753862347983,1.002,3811.6,3811.5,1.03785]
[1753862348183,1.4547,3811.6,3811.5,2.33135]
[1753862348592,1.1438,3811.6,3811.5,2.33135]
[1753862348986,0.9424,3811.6,3811.5,2.33135]
[1753862349191,1.09844614,3812.0,3811.7,0.52472]
[1753862349391,1.09844614,3812.0,3811.7,1.25422]
[1753862349392,1.4547,3811.8,3811.7,1.25422]
[1753862349892,1.4547,3811.8,3811.7,2.33132]
[1753862351888,1.4547,3811.8,3811.7,1.8066]
[1753862352292,0.6983,3811.6,3811.5,0.835]
[1753862352591,1.7584,3811.6,3811.5,1.053]
[1753862352893,1.7584,3811.6,3811.5,2.33135]
[1753862353085,1.4547,3811.6,3811.5,2.33135]
[1753862353487,1.4547,3811.6,3811.5,1.8066]
[1753862355594,1.4547,3811.6,3811.4,0.52476]
[1753862355796,1.3129,3811.5,3811.4,1.70236]
[1753862356092,1.4547,3811.5,3811.4,1.70236]
[1753862356396,1.4547,3811.5,3811.4,2.33136]
[1753862358292,1.4547,3811.5,3811.4,23.52336]
[1753862361494,1.74295614,3811.8,3811.7,1.22542]
[1753862361795,2.05115614,3811.8,3811.7,2.25772]
[1753862361997,2.33565614,3811.8,3811.7,1.733]
[1753862365797,2.05115614,3811.8,3811.7,1.733]
[1753862366997,2.33565614,3811.8,3811.7,1.733]
[1753862368301,2.86036614,3811.8,3811.7,1.733]
[1753862368698,1.7619,3811.7,3811.6,0.2803]
[1753862368900,1.7619,3811.7,3811.6,0.7826]
[1753862369090,1.7619,3811.7,3811.6,1.1486]
[1753862369298,1.7619,3811.7,3811.6,1.4289]
[1753862369492,1.7619,3811.7,3811.6,1.733]
[1753862371005,1.4774,3811.7,3811.6,1.733]
[1753862371904,1.4774,3811.7,3811.6,22.924]
[1753862372607,1.1692,3811.7,3811.6,22.924]
[1753862373106,1.4774,3811.7,3811.6,22.924]
[1753862375507,0.9586,3811.7,3811.6,22.924]
[1753862375905,1.4774,3811.7,3811.6,22.924]
[1753862377007,0.57375614,3812.1,3811.6,22.924]
[1753862377211,1.4774,3812.2,3812.1,1.4289]
[1753862377513,1.0428,3812.2,3811.6,21.191]
[1753862377711,1.1692,3811.7,3811.6,22.86294]
[1753862377915,1.4774,3811.7,3811.6,22.86294]
[1753862378305,1.4774,3811.7,3811.6,23.44874]
[1753862379707,0.3048,3811.8,3811.7,0.52472]
[1753862379913,1.1692,3811.8,3811.7,21.5846]
[1753862380112,1.7619,3811.8,3811.7,22.921]
[1753862380312,1.4774,3811.8,3811.7,22.921]
[1753862380508,1.1692,3811.8,3811.7,22.921]
[1753862380716,1.4774,3811.8,3811.7,22.921]
[1753862381114,0.3048,3811.8,3811.7,22.921]
[1753862381314,0.7549,3811.8,3811.7,22.921]
[1753862382109,0.9586,3811.8,3811.7,22.921]
[1753862382814,1.2668,3811.8,3811.7,22.921]
[1753862383514,1.4774,3811.8,3811.7,22.921]
[1753862386516,1.1692,3811.8,3811.7,22.921]
[1753862387824,1.4774,3811.8,3811.7,22.921]
[1753862390433,0.9586,3811.8,3811.7,22.921]
[1753862390635,1.4774,3811.8,3811.7,22.921]
[1753862393437,1.7803,3811.8,3811.7,22.4745]
[1753862393630,1.7803,3811.8,3811.7,22.1704]
[1753862393827,1.7803,3811.8,3811.7,22.1654]
[1753862394032,1.7803,3811.8,3811.7,21.6601]
[1753862394338,1.7803,3811.8,3811.7,21.4633]
[1753862394938,1.7803,3811.8,3811.7,0.2803]
[1753862395236,1.7803,3811.8,3811.7,21.4633]
[1753862395431,1.7803,3811.8,3811.7,0.2803]
[1753862395635,1.7803,3811.8,3811.7,21.4633]
[1753862395932,1.20242,3811.7,3811.5,0.81124]
[1753862396241,1.7429,3811.6,3811.5,22.69454]
[1753862396536,1.7429,3811.6,3811.5,23.11854]
[1753862398038,1.7429,3811.6,3811.5,22.5938]
[1753862398239,1.7429,3811.6,3811.5,22.8856]
[1753862400149,1.7429,3811.6,3810.7,1.88589614]
[1753862400150,0.52475,3811.5,3810.7,0.57375614]
[1753862400434,0.7047,3811.3,3811.2,0.91658]
[1753862400635,0.3904,3811.3,3811.2,22.09758]
[1753862400830,0.4846,3811.3,3811.2,22.98538]
[1753862401236,0.7989,3811.3,3811.2,22.98538]
[1753862401441,1.2469,3811.3,3811.2,23.40938]
[1753862401639,1.44,3811.3,3811.2,22.8846]
[1753862403641,1.7429,3811.3,3811.2,22.8846]
[1753862404043,1.44,3811.3,3811.2,23.40939]
[1753862404548,1.1257,3811.3,3811.2,23.40939]
[1753862404839,1.31171,3812.1,3811.2,23.40939]
[1753862405044,1.31171,3812.1,3811.2,21.8646]
[1753862405238,5.24762217,3812.0,3811.2,21.8646]
[1753862405439,0.6777,3811.3,3810.0,4.72124743]
[1753862405644,0.93971634,3813.0,3811.2,0.6836]
[1753862405849,21.96284589,3812.7,3811.2,0.6836]
[1753862406144,0.2873,3811.4,3811.3,1.20837]
[1753862406545,1.20246,3811.4,3811.3,0.6836]
[1753862406945,0.91519,3811.3,3811.2,0.3918]
[1753862407144,1.20249,3811.3,3811.2,0.3918]
[1753862407642,0.2873,3811.5,3811.4,0.81656]
[1753862407945,0.6777,3811.5,3811.4,0.6836]
[1753862408148,1.20246,3811.4,3811.3,0.1957]
[1753862408353,1.20246,3811.4,3811.3,0.3918]
[1753862408648,0.6777,3811.4,3811.3,0.3918]
[1753862408848,0.6777,3811.4,3811.3,0.6836]
[1753862410950,0.6777,3810.9,3810.8,21.5708]
[1753862411153,0.6777,3810.9,3810.8,0.6836]
[1753862411448,0.6777,3810.9,3810.8,0.1957]
[1753862412953,0.6777,3810.6,3810.5,0.3918]
[1753862413247,0.52489,3810.5,3810.1,0.52494]
[1753862413445,0.6777,3810.2,3810.1,1.20854]
[1753862413841,0.6777,3810.2,3810.1,0.6836]
[1753862414248,0.6777,3810.2,3810.1,0.3918]
[1753862414446,0.6777,3809.9,3809.8,0.58603337]
[1753862414644,1.20267,3809.9,3809.8,0.58603337]
[1753862414948,0.52497,3809.9,3809.8,0.38993337]
[1753862415150,6.45180717,3809.9,3809.8,0.19423337]
[1753862415354,7.51700717,3809.9,3809.8,0.19423337]
[1753862415548,12.51700717,3809.9,3809.8,0.19423337]
[1753862417344,7.51700717,3809.9,3809.8,0.19423337]
[1753862417549,12.51700717,3809.9,3809.8,0.19423337]
[1753862418152,7.51700717,3809.9,3809.8,0.87253337]
[1753862418347,1.44,3809.9,3809.8,1.89783337]
[1753862418549,0.2873,3809.9,3809.8,1.89783337]
[1753862418853,0.7353,3810.1,3810.0,0.6836]
[1753862419051,1.44,3810.1,3810.0,1.7036]
[1753862420053,1.7429,3809.9,3809.8,0.19423337]
[1753862420443,1.7429,3809.9,3809.8,1.18203337]
[1753862421847,1.7429,3809.9,3809.8,1.62293337]
[1753862422652,1.7429,3809.9,3809.8,1.18203337]
[1753862423443,1.44,3809.9,3809.8,1.92903337]
[1753862424252,0.52496,3810.0,3809.9,0.5923]
[1753862424451,1.94796,3810.0,3809.9,1.7343]
[1753862425452,1.66336,3810.0,3809.9,1.7343]
[1753862425647,1.94796,3810.0,3809.9,1.7343]
[1753862425849,1.66336,3810.0,3809.9,1.7343]
[1753862426355,0.81855,3810.1,3810.0,1.7343]
[1753862426551,1.26735,3810.1,3810.0,1.7343]
[1753862426752,2.22715,3810.1,3810.0,1.7343]
[1753862427052,2.22717,3809.9,3809.8,0.78653337]
[1753862427252,2.22717,3809.9,3809.8,0.97433337]
[1753862427549,2.22717,3809.9,3809.8,1.62243337]
[1753862428451,2.22717,3809.9,3809.8,0.48843337]
[1753862428655,7.4767205,3809.9,3809.8,0.19423337]
[1753862430550,5.9807205,3809.9,3809.8,0.88343337]
[1753862430854,7.4767205,3809.9,3809.8,1.92853337]
[1753862431655,7.4767205,3809.9,3809.8,1.18153337]
[1753862433657,7.4767205,3809.9,3809.8,1.62243337]
[1753862434959,7.4767205,3809.9,3809.8,1.92853337]
[1753862435162,7.1975205,3809.9,3809.8,1.92853337]
[1753862435453,1.94797,3809.9,3809.8,1.92853337]
[1753862435653,21.4736,3809.9,3809.8,1.92853337]
[1753862436165,1.66337,3809.9,3809.8,1.92853337]
[1753862436360,1.94797,3809.9,3809.8,1.92853337]
[1753862437466,1.423,3809.9,3809.8,1.92853337]
[1753862439263,1.7022,3809.9,3809.8,1.92853337]
[1753862439464,6.9517505,3809.9,3809.8,0.19423337]
[1753862442162,6.9517505,3809.9,3809.8,0.48843337]
[1753862443568,6.9517505,3809.9,3809.8,1.18153337]
[1753862443764,5.5431505,3809.9,3809.8,1.18153337]
[1753862443968,5.9919505,3809.9,3809.8,1.92853337]
[1753862444156,5.5431505,3809.9,3809.8,1.92853337]
[1753862444357,0.2936,3809.9,3809.8,1.92853337]
[1753862444564,0.9322,3809.9,3809.8,1.92853337]
[1753862444758,1.1384,3809.9,3809.8,1.92853337]
[1753862444969,1.423,3809.9,3809.8,1.92853337]
[1753862447572,1.1384,3809.9,3809.8,1.92853337]
[1753862448766,21.4696,3809.9,3809.8,1.92853337]
[1753862449261,21.176,3809.9,3809.8,1.92853337]
[1753862449667,21.6248,3809.9,3809.8,1.92853337]
[1753862450070,0.4488,3809.9,3809.8,1.92853337]
[1753862452477,1.7427,3809.9,3809.8,1.17323337]
[1753862453271,1.7427,3809.9,3809.8,1.59503337]
[1753862454073,1.7427,3809.9,3809.8,1.89293337]
[1753862454278,1.4348,3809.9,3809.8,1.89293337]
[1753862455678,6.9922505,3809.9,3809.8,0.19423337]
[1753862458582,6.9922505,3809.9,3809.8,0.50093337]
[1753862458781,6.9922505,3809.9,3809.8,0.19423337]
[1753862460189,6.9922505,3809.9,3809.8,1.60753337]
[1753862460389,6.6843505,3809.9,3809.8,0.98183337]
[1753862460591,6.9922505,3809.9,3809.8,1.18573337]
[1753862460786,6.9922505,3809.9,3809.8,1.60753337]
[1753862460993,27.8553505,3809.9,3809.8,1.90543337]
[1753862461389,21.17,3809.9,3809.8,0.88873337]
[1753862461995,21.17,3809.9,3809.8,1.90543337]
[1753862464493,21.8967,3809.9,3809.8,1.90543337]
[1753862464995,22.6051,3809.9,3809.8,1.90543337]
[1753862465790,22.6031,3809.9,3809.8,1.90543337]
[1753862466487,28.1605505,3809.9,3809.8,0.19423337]
[1753862467787,0.2901,3809.5,3809.1,0.2882]
[1753862467988,1.743,3809.2,3809.1,1.1066]
[1753862468192,23.43507,3809.2,3809.1,0.6848]
[1753862468387,23.43507,3809.2,3809.1,0.9915]
[1753862470595,1.25185,3808.7,3808.6,1.1163]
[1753862471094,1.25185,3808.7,3808.6,1.4045]
[1753862471295,1.25185,3808.7,3808.6,1.7112]
[1753862472093,1.66255,3808.7,3808.6,1.7112]
[1753862472299,1.96025,3808.7,3808.6,1.7112]
[1753862472596,23.12625,3808.7,3808.6,1.2894]
[1753862472888,23.43415,3808.7,3808.6,0.5106]
[1753862473095,23.43415,3808.7,3808.6,1.4133]
[1753862473595,23.43415,3808.7,3808.6,1.7112]
[1753862473789,0.7267,3808.7,3808.6,1.7112]
[1753862473992,0.2901,3808.7,3808.6,1.7112]
[1753862475192,41.76167,3809.2,3809.1,1.4045]
[1753862475395,0.81523,3808.8,3808.7,0.4906]
[1753862475589,1.45763,3808.8,3808.7,1.4045]
[1753862475792,0.9325,3808.8,3808.7,1.7112]
[1753862476698,0.7267,3808.8,3808.7,2.23633]
[1753862476897,0.2901,3808.8,3808.7,2.23633]
[1753862477099,40.8,3809.2,3809.1,1.1163]
[1753862477100,41.32507,3809.2,3809.1,1.1163]
[1753862477300,21.69107,3809.2,3809.1,1.7112]
[1753862477500,22.12767,3809.2,3809.1,1.7112]
[1753862477703,22.41777,3809.2,3809.1,1.7112]
[1753862478290,21.8927,3809.2,3809.1,1.7112]
[1753862478496,0.4366,3809.9,3809.3,1.7112]
[1753862478702,0.52504,3809.5,3809.4,1.7112]
[1753862478994,46.0505152,3809.7,3809.5,0.52503]
[1753862479298,0.7267,3809.8,3809.7,1.7112]
[1753862479502,21.8917,3809.8,3809.7,1.7112]
[1753862480104,22.3024,3809.8,3809.7,1.7112]
[1753862480401,1.25166,3810.0,3809.9,1.7112]
[1753862480599,0.7267,3810.0,3809.9,1.7112]
[1753862480900,21.8907,3810.0,3809.9,1.7112]
[1753862481292,21.164,3810.0,3809.9,1.7112]
[1753862481497,21.164,3810.0,3809.9,0.6945]
[1753862481894,0.94594,3810.2,3809.9,0.6945]
[1753862482201,21.164,3810.1,3810.0,1.6957]
[1753862482402,22.5574,3810.1,3810.0,1.6957]
[1753862483103,1.3934,3810.1,3810.0,1.6957]
[1753862483407,22.5554,3810.1,3810.0,1.6957]
[1753862484002,22.267,3810.1,3810.0,1.6957]
[1753862485599,0.2907,3810.1,3810.0,1.6957]
[1753862486000,21.4507,3810.1,3810.0,1.6957]
[1753862486911,0.2907,3810.1,3810.0,1.6957]
[1753862487112,21.4507,3810.1,3810.0,1.6957]
[1753862487311,21.4497,3810.1,3810.0,1.6957]
[1753862487713,0.2907,3810.1,3810.0,1.6957]
[1753862487913,22.5524,3810.1,3810.0,1.6957]
[1753862488112,0.20763112,3810.7,3810.0,1.6957]
[1753862488113,0.421,3810.6,3810.0,2.22066]
[1753862488412,1.52497,3810.6,3810.5,1.6957]
[1753862488616,23.07627,3810.6,3810.5,1.6957]
[1753862489116,1.62987,3810.6,3810.5,1.6957]
[1753862489310,21.68287,3810.6,3810.5,1.6957]
[1753862489608,0.52487,3810.7,3810.6,1.0244]
[1753862489816,0.52487,3810.7,3810.6,1.6957]
[1753862490005,21.68187,3810.7,3810.6,1.6957]
[1753862490403,0.52487,3810.7,3810.6,1.6957]
[1753862490614,21.157,3810.7,3810.6,1.6957]
[1753862491009,0.52485,3810.8,3810.6,0.6713]
[1753862491215,21.157,3810.8,3810.7,1.6957]
[1753862491415,21.156,3810.8,3810.7,0.6713]
[1753862492012,21.156,3810.8,3810.7,1.6957]
[1753862493805,21.8677,3810.8,3810.7,1.6957]
[1753862495317,22.39255,3810.8,3810.7,1.6957]
[1753862495817,21.8677,3810.8,3810.7,1.6957]
[1753862496213,22.0707,3810.8,3810.7,1.6957]
[1753862496413,0.9147,3810.8,3810.7,1.6957]
[1753862497117,1.2031,3810.8,3810.7,1.6957]
[1753862498119,0.9147,3810.8,3810.7,1.6957]
[1753862498616,1.2031,3810.8,3810.7,1.6957]
[1753862498817,1.3934,3810.8,3810.7,1.6957]
[1753862500315,1.3934,3810.8,3810.7,0.9747]
[1753862500511,1.6976,3810.8,3810.7,0.9747]